bitfinex-derivatives/quotes_ETHF0:USTF0_20250116
["timestamp","ask_amount","ask_price","bid_price","bid_amount"]
[1737044869478,3.80428,3353.5,3352.8,1.49151]
[1737044869778,3.80428,3353.5,3353.2,0.59651]
[1737044870075,0.59652,3353.3,3353.1,0.59654]
[1737044870275,3.2078,3353.5,3352.6,3.2078]
[1737044870475,0.59656,3353.1,3352.9,0.59657]
[1737044870879,4.699,3353.5,3352.8,0.59659]
[1737044871079,0.59656,3353.1,3352.7,1.317]
[1737044871378,0.59658,3353.0,3352.7,1.91361]
[1737044871574,0.59659,3352.9,3352.7,1.91361]
[1737044871779,1.49142,3353.0,3352.1,0.5205]
[1737044872080,3.2078,3352.4,3351.6,1.317]
[1737044872468,3.2078,3351.9,3351.0,4.57515163]
[1737044872672,0.59689,3351.2,3351.1,0.5969]
[1737044872881,3.2078,3351.5,3351.0,4.57515163]
[1737044873381,0.59688,3351.3,3350.8,1.317]
[1737044873777,3.2078,3351.5,3350.8,1.317]
[1737044874475,1.49213,3351.4,3350.6,4.5248]
[1737044875178,0.59695,3350.9,3350.8,0.59695]
[1737044875378,0.59693,3351.0,3350.7,1.317]
[1737044875574,0.59693,3351.0,3350.9,0.59694]
[1737044875773,0.59692,3351.0,3350.8,0.59695]
[1737044875976,0.59694,3350.9,3350.7,1.91396]
[1737044876675,0.59695,3350.9,3350.7,1.91397]
[1737044877274,3.2078,3351.1,3350.7,1.91397]
[1737044877474,0.59696,3350.8,3350.7,1.91397]
[1737044877674,3.2078,3351.1,3350.7,1.91397]
[1737044877875,0.59695,3350.9,3350.7,1.317]
[1737044878083,0.59695,3350.9,3350.8,0.59696]
[1737044878285,0.59695,3350.9,3350.7,1.317]
[1737044878582,0.59696,3350.8,3350.7,1.91396]
[1737044878777,0.59696,3350.8,3350.7,1.317]
[1737044881388,0.59705,3350.3,3350.2,12.532]
[1737044881880,3.2078,3350.6,3350.2,13.849]
[1737044882084,3.2078,3351.0,3350.2,19.96406444]
[1737044882383,0.5242,3351.7,3350.8,3.2078]
[1737044882590,5.83268409,3351.8,3351.3,6.11506444]
[1737044882880,5.83268409,3351.8,3351.4,1.317]
[1737044883186,5.83268409,3351.8,3351.4,1.8328]
[1737044884082,3.2078,3352.3,3351.4,1.317]
[1737044884386,2.90726444,3352.0,3351.4,1.317]
[1737044885487,3.2078,3352.3,3351.4,1.317]
[1737044886685,3.2078,3352.3,3351.4,1.8609]
[1737044888986,3.2078,3352.3,3351.4,42.6609]
[1737044889688,3.2078,3352.3,3351.4,42.117]
[1737044890089,3.2078,3352.3,3351.4,1.317]
[1737044891387,3.2078,3352.3,3351.8,3.2078]
[1737044891591,4.66685147,3352.7,3352.2,3.2078]
[1737044891796,4.66685147,3352.7,3352.3,1.316]
[1737044892886,3.2078,3352.8,3352.3,1.316]
[1737044893498,0.5286,3353.1,3352.3,1.316]
[1737044893792,3.7359,3353.3,3352.5,2.90726444]
[1737044895091,3.7359,3353.3,3352.6,3.2078]
[1737044895289,3.2078,3353.3,3353.0,2.90726444]
[1737044895485,3.2078,3353.3,3353.1,1.316]
[1737044898089,3.2078,3353.3,3353.2,0.0327937]
[1737044900796,3.2078,3353.3,3353.2,1.3487937]
[1737044901898,3.2078,3353.3,3353.2,0.0327937]
[1737044902200,3.2078,3353.3,3353.2,0.06575878]
[1737044902698,3.2078,3353.3,3352.8,1.315]
[1737044902902,3.2078,3353.3,3352.6,3.2078]
[1737044903403,3.2078,3353.3,3352.2,3.2078]
[1737044903702,3.2078,3353.3,3352.3,1.315]
[1737044904095,3.2078,3352.9,3352.3,1.315]
[1737044904296,0.5585,3352.8,3352.3,1.315]
[1737044905398,3.2078,3353.4,3352.6,3.2078]
[1737044905599,0.5606,3353.3,3352.6,3.2078]
[1737044907307,0.5606,3353.3,3352.9,0.03299478]
[1737044908206,0.5606,3353.3,3353.1,0.03299478]
[1737044909103,0.5606,3353.3,3353.1,1.34799478]
[1737044909410,0.5606,3353.3,3353.2,0.03299478]
[1737044914219,5.5606,3353.3,3351.7,3.7368]
[1737044914510,3.2078,3351.8,3351.7,1.315]
[1737044914714,3.2078,3352.2,3351.7,1.315]
[1737044915705,3.2078,3352.2,3351.4,1.315]
[1737044917408,0.5351,3352.1,3351.4,1.315]
[1737044919315,3.2078,3351.6,3351.4,1.315]
[1737044919713,0.5694,3351.5,3351.1,1.316]
[1737044920013,0.5694,3351.5,3351.1,42.116]
[1737044920812,0.5694,3351.5,3351.1,40.8]
[1737044921016,1.1196,3351.5,3351.1,40.8]
[1737044921408,1.1196,3351.5,3351.2,2.90726444]
[1737044921605,0.5694,3351.5,3351.2,2.90726444]
[1737044921806,0.5694,3351.5,3351.1,40.8]
[1737044922206,0.5502,3351.9,3351.3,3.2078]
[1737044922409,3.2078,3352.0,3351.5,2.90726444]
[1737044923511,3.2078,3352.0,3351.3,3.2078]
[1737044923711,3.2078,3352.0,3351.6,0.03283111]
[1737044924815,3.2078,3352.0,3351.8,0.03283111]
[1737044925422,5.4659201,3352.0,3351.8,0.03283111]
[1737044925613,5.4659201,3352.0,3351.1,40.8]
[1737044925818,3.2078,3351.6,3351.1,40.8]
[1737044926522,3.2078,3351.6,3351.0,1.315]
[1737044926722,0.6108,3351.5,3350.9,3.5731201]
[1737044927219,0.6108,3351.5,3351.0,40.8]
[1737044927417,3.2078,3351.6,3351.2,2.2581201]
[1737044928519,3.2078,3351.6,3351.1,3.2078]
[1737044928823,3.2078,3351.6,3351.0,40.8]
[1737044929909,3.2078,3351.6,3351.2,2.2581201]
[1737044930123,5.81275147,3352.1,3351.5,2.2581201]
[1737044930124,7.87465147,3352.1,3351.5,2.2581201]
[1737044930423,7.87465147,3352.1,3351.6,0.5702]
[1737044930424,3.2078,3352.1,3351.6,0.5702]
[1737044930723,3.2078,3352.1,3351.7,1.315]
[1737044931423,3.2078,3352.1,3351.9,0.06618682]
[1737044932324,3.2078,3352.1,3352.0,0.06618682]
[1737044933325,3.814,3352.1,3352.0,0.06618682]
[1737044933622,7.31723068,3352.1,3352.0,0.06618682]
[1737044934421,3.814,3352.1,3352.0,0.06618682]
[1737044938718,3.814,3352.1,3351.1,1.315]
[1737044938924,3.2078,3351.5,3351.1,1.315]
[1737044940627,3.50232155,3351.9,3351.3,2.2581201]
[1737044940932,3.50232155,3351.9,3351.6,2.2581201]
[1737044941330,2.2581201,3352.3,3351.5,3.2078]
[1737044942130,0.6057,3352.2,3351.5,3.2078]
[1737044942331,0.6057,3352.2,3351.6,40.8]
[1737044942332,4.10802155,3352.2,3351.6,40.8]
[1737044942729,4.10802155,3352.2,3351.5,3.2078]
[1737044943231,4.10802155,3352.2,3351.5,44.0078]
[1737044943430,4.10802155,3352.2,3351.5,3.2078]
[1737044943632,3.50232155,3352.2,3351.5,3.2078]
[1737044944221,5.76044165,3352.3,3351.5,3.2078]
[1737044945334,3.50232155,3352.2,3351.5,3.2078]
[1737044947628,6.71012155,3352.1,3351.4,2.8310201]
[1737044947933,6.71012155,3352.1,3351.4,0.5729]
[1737044948132,0.6047,3352.0,3351.4,1.8879]
[1737044948828,3.50232155,3351.9,3351.4,1.8879]
[1737044949435,1.72222155,3351.9,3351.8,2.2581201]
[1737044949634,1.26402155,3351.9,3351.8,3.5731201]
[1737044950235,1.26402155,3351.9,3351.8,44.3731201]
[1737044950440,3.2078,3353.0,3351.8,44.3731201]
[1737044950634,3.2078,3353.0,3352.3,3.2078]
[1737044951233,2.2581201,3352.8,3351.9,3.2078]
[1737044951442,3.2078,3352.6,3351.9,3.2078]
[1737044952034,1.7483,3352.7,3351.9,3.2078]
[1737044953639,4.66685147,3352.6,3351.9,3.2078]
[1737044954835,3.2078,3352.3,3351.8,3.5731201]
[1737044955040,3.2078,3352.3,3351.7,1.313]
[1737044955234,4.66685147,3352.6,3351.9,2.2581201]
[1737044955634,4.66685147,3352.6,3351.8,3.2078]
[1737044955931,4.66685147,3352.6,3351.9,2.2581201]
[1737044956133,2.34038916,3352.0,3351.9,2.2581201]
[1737044956933,2.34038916,3352.0,3351.8,3.2078]
[1737044957330,2.34038916,3352.1,3351.8,3.2078]
[1737044958043,2.34038916,3352.1,3351.3,43.0581201]
[1737044958340,3.7362,3352.0,3351.3,40.8]
[1737044958534,3.3082201,3351.9,3351.2,1.313]
[1737044958936,2.34038916,3351.5,3351.2,1.313]
[1737044960340,2.34038916,3351.5,3351.2,6.7789201]
[1737044960636,4.66685147,3351.5,3351.2,6.7789201]
[1737044960933,4.66685147,3351.5,3351.2,11.7789201]
[1737044961239,4.12959147,3351.5,3351.2,11.7789201]
[1737044961438,4.12959147,3351.5,3351.4,2.2581201]
[1737044961638,4.12959147,3351.7,3351.2,11.7789201]
[1737044961833,4.12959147,3351.7,3351.6,5.4659201]
[1737044962032,4.12959147,3351.7,3351.6,46.2659201]
[1737044962937,5.83268409,3352.5,3351.6,46.2659201]
[1737044964142,1.1146,3352.6,3351.6,46.2659201]
[1737044964143,5.83268409,3352.4,3351.6,46.2659201]
[1737044964837,9.04048409,3352.4,3351.6,5.4659201]
[1737044965039,9.04048409,3352.4,3351.5,1.313]
[1737044965235,3.2078,3352.0,3351.5,1.313]
[1737044965444,1.0848,3351.9,3351.4,1.313]
[1737044965741,0.5468,3351.8,3351.4,1.313]
[1737044966345,0.5468,3351.8,3351.5,2.2581201]
[1737044968541,0.5468,3351.8,3351.6,3.2078]
[1737044969652,0.5468,3351.8,3351.5,2.2581201]
[1737044969845,0.5468,3351.8,3351.6,3.2078]
[1737044970146,5.83268409,3352.1,3351.6,3.2078]
[1737044970340,5.83268409,3352.1,3352.0,2.2581201]
[1737044970746,5.83268409,3352.1,3351.7,2.2581201]
[1737044970935,0.5579,3352.3,3351.7,2.2581201]
[1737044971450,0.5579,3352.3,3351.6,5.4659201]
[1737044971945,6.39058409,3352.3,3351.6,5.4659201]
[1737044973147,5.83268409,3352.2,3351.6,5.4659201]
[1737044973947,5.83268409,3352.2,3351.9,2.2581201]
[1737044974144,5.83268409,3352.2,3351.6,3.2078]
[1737044974349,5.83268409,3352.2,3351.6,5.4659201]
[1737044974549,2.34455566,3351.7,3351.6,5.4659201]
[1737044975542,2.34455566,3351.7,3351.6,3.5711201]
[1737044976051,2.34455566,3351.7,3351.6,6.7789201]
[1737044976853,5.83268409,3352.2,3351.6,6.7789201]
[1737044977055,5.83268409,3352.2,3352.0,2.2581201]
[1737044977249,5.83268409,3352.2,3352.0,5.4659201]
[1737044977449,5.83268409,3352.2,3352.1,40.8]
[1737044977950,5.83268409,3352.2,3352.0,3.2078]
[1737044978348,2.34438518,3352.1,3352.0,3.2078]
[1737044979349,6.39058409,3352.3,3352.0,3.2078]
[1737044979950,6.39058409,3352.3,3351.6,3.2078]
[1737044980246,6.39058409,3352.3,3351.6,4.5208]
[1737044980452,5.83268409,3352.2,3351.6,4.5208]
[1737044980846,5.83268409,3352.2,3351.1,40.8]
[1737044980847,3.2078,3351.9,3351.1,40.8]
[1737044981152,3.2078,3351.5,3351.2,1.313]
[1737044981348,1.0683,3351.4,3351.0,0.23504144]
[1737044981546,0.5383,3351.4,3351.3,2.2581201]
[1737044982253,0.5383,3351.4,3351.1,3.2078]
[1737044982553,0.5383,3351.4,3351.2,2.2581201]
[1737044983554,6.36268409,3351.7,3351.2,2.2581201]
[1737044983755,1.0683,3351.7,3351.5,2.2581201]
[1737044984251,1.0683,3351.7,3351.6,3.2078]
[1737044988151,1.0683,3351.7,3351.6,4.5198]
[1737044991360,1.0683,3351.7,3351.4,1.312]
[1737044991554,1.0683,3351.7,3351.2,6.7779201]
[1737044992260,4.69080444,3351.6,3351.2,6.7779201]
[1737044993262,4.69080444,3351.6,3351.2,3.5701201]
[1737044993462,4.69080444,3351.6,3351.2,1.312]
[1737044993660,2.34535366,3351.3,3351.2,1.312]
[1737044993961,2.34535366,3351.3,3351.0,3.5701201]
[1737044994858,4.69080444,3351.4,3351.2,3.2078]
[1737044995059,4.69080444,3351.4,3351.3,2.2581201]
[1737044995664,5.75910444,3351.7,3351.3,2.2581201]
[1737044995860,5.75910444,3351.7,3351.6,2.2581201]
[1737044996767,5.75910444,3351.7,3351.6,2.51575938]
[1737044996966,1.0683,3351.7,3351.6,2.51575938]
[1737044997367,1.0683,3351.7,3351.6,0.25763928]
[1737045000162,1.0683,3351.7,3351.6,0.25753526]
[1737045000361,1.0683,3351.7,3351.2,3.2078]
[1737045000560,1.0683,3351.7,3351.2,5.4659201]
[1737045000966,3.2078,3351.6,3351.1,4.57515163]
[1737045001165,2.2581201,3351.5,3351.0,4.57515163]
[1737045001364,3.2078,3351.6,3351.2,2.2581201]
[1737045001563,3.2078,3352.4,3351.5,2.2581201]
[1737045001768,3.2078,3352.4,3352.2,2.2581201]
[1737045001964,3.2078,3352.4,3352.2,3.5701201]
[1737045002172,3.2078,3352.4,3352.2,1.312]
[1737045002372,3.2078,3352.4,3352.3,0.45068558]
[1737045002672,5.4659201,3352.4,3352.3,0.45068558]
[1737045003069,5.4659201,3352.4,3351.8,4.57515163]
[1737045003267,3.2078,3352.4,3351.8,4.57515163]
[1737045003772,3.2078,3352.4,3351.7,4.57515163]
[1737045004164,5.4659201,3352.4,3351.7,4.57515163]
[1737045004363,3.2078,3352.0,3351.7,4.57515163]
[1737045004568,5.4659201,3352.4,3351.7,4.57515163]
[1737045004772,3.2078,3352.4,3351.7,4.57515163]
[1737045004964,3.2078,3352.4,3351.7,6.83327173]
[1737045005769,3.2078,3352.4,3351.9,4.57515163]
[1737045006274,3.2078,3352.4,3351.9,6.83327173]
[1737045006573,2.2581201,3352.3,3352.2,6.86272745]
[1737045006765,2.8042201,3352.3,3352.2,4.55867283]
[1737045007172,7.8042201,3352.3,3352.2,2.01687283]
[1737045007370,7.8042201,3352.3,3352.0,14.16143468]
[1737045007762,7.8042201,3352.3,3350.8,0.79670779]
[1737045007763,7.8042201,3352.3,3351.4,6.86272745]
[1737045007970,3.2078,3351.5,3351.4,6.86272745]
[1737045008371,3.2078,3351.9,3351.4,6.86272745]
[1737045008573,3.2078,3351.9,3351.2,2.2581201]
[1737045008774,3.2078,3351.9,3351.1,6.86272745]
[1737045009068,3.2078,3351.9,3351.2,2.2581201]
[1737045009268,3.2078,3351.9,3351.2,2.8206201]
[1737045009775,3.2078,3351.9,3351.8,6.86272745]
[1737045011669,0.5461,3352.3,3351.8,9.12084755]
[1737045011670,3.2078,3352.3,3351.8,9.12084755]
[1737045011875,3.2078,3352.3,3351.7,9.71440327]
[1737045012076,0.5078,3353.4,3351.7,9.15030327]
[1737045012077,3.2078,3351.9,3351.7,9.15030327]
[1737045012278,3.2078,3351.9,3351.8,0.28385347]
[1737045013284,3.2078,3351.9,3351.8,0.28382167]
[1737045014481,0.5078,3352.2,3351.8,0.28382167]
[1737045014682,0.5078,3352.2,3351.9,0.28382167]
[1737045014879,0.5078,3352.2,3352.0,0.28382167]
[1737045015079,0.5078,3352.2,3352.1,0.28379336]
[1737045015286,0.5078,3352.2,3352.1,0.74017624]
[1737045016578,0.5078,3352.2,3352.1,7.57681643]
[1737045017080,3.2078,3352.3,3352.1,7.12043672]
[1737045017278,3.2078,3352.3,3352.2,0.28379653]
[1737045017683,3.2078,3352.3,3352.2,0.74015353]
[1737045018083,3.2078,3352.3,3352.2,0.456357]
[1737045018786,3.2078,3352.3,3352.2,0.74018791]
[1737045018983,3.2078,3352.3,3352.2,0.74020317]
[1737045019184,3.2078,3352.3,3352.2,1.25240317]
[1737045019385,3.2078,3352.3,3352.2,8.08904336]
[1737045019790,3.80449,3352.3,3352.2,8.08904336]
[1737045019988,3.80449,3352.3,3352.2,1.25240317]
[1737045020190,3.80449,3352.3,3352.2,0.74020317]
[1737045020392,6.0626101,3352.3,3352.2,0.74020317]
[1737045020585,6.0626101,3352.3,3352.2,0.456357]
[1737045020984,0.59671,3352.2,3352.1,6.83664019]
[1737045021386,0.59671,3352.2,3352.1,7.29310224]
[1737045021785,0.59676,3351.9,3351.8,6.83664019]
[1737045022081,6.0626801,3351.9,3351.8,6.19873019]
[1737045022285,11.0626801,3351.9,3351.8,5.57150019]
[1737045022492,11.0626801,3351.9,3351.8,4.96758019]
[1737045022883,10.4659201,3351.9,3351.1,9.15030327]
[1737045023190,0.59689,3351.2,3351.1,9.15030327]
[1737045023391,0.59689,3351.2,3351.1,9.43655534]
[1737045024290,3.2078,3351.5,3351.1,18.20140135]
[1737045024491,3.80465,3351.5,3351.4,0.59685]
[1737045024690,3.80465,3351.5,3351.4,0.88310207]
[1737045025089,0.5302,3352.1,3351.4,0.88310207]
[1737045025291,4.69946,3352.5,3351.7,2.2581201]
[1737045025493,0.59676,3351.9,3351.8,0.28625207]
[1737045025893,0.59676,3351.9,3351.8,1.02701886]
[1737045026194,0.59675,3352.1,3352.0,0.59673]
[1737045026384,0.59675,3352.1,3352.0,0.88298207]
[1737045026587,0.59675,3352.1,3352.0,0.28625207]
[1737045026988,0.59675,3352.1,3352.0,1.02701886]
[1737045027589,3.80455,3352.1,3352.0,1.02701886]
[1737045028100,0.5967,3352.3,3352.0,12.77508082]
[1737045028295,2.56274,3352.8,3352.2,5.4659201]
[1737045028296,0.5197,3352.8,3352.2,5.4659201]
[1737045028499,0.59667,3352.5,3352.4,0.59666]
[1737045028702,0.59667,3352.5,3352.4,0.28625207]
[1737045028900,3.80447,3352.5,3352.4,0.28625207]
[1737045029700,3.80447,3352.5,3352.4,9.93318794]
[1737045030604,3.80447,3352.5,3352.4,1.02701886]
[1737045030898,3.80447,3352.5,3352.4,0.28625207]
[1737045032898,11.0625901,3352.5,3352.4,0.28625207]
[1737045033104,0.59678,3351.8,3351.6,9.12905026]
[1737045033300,0.59678,3351.8,3351.7,0.28652768]
[1737045034604,0.59678,3351.8,3351.7,0.74466454]
[1737045035199,5.59678,3351.8,3351.7,0.74466454]
[1737045035400,5.59678,3351.8,3350.8,9.12905026]
[1737045035401,2.98414,3351.6,3350.8,9.12905026]
[1737045035605,2.98414,3351.6,3350.6,0.23274731]
[1737045035606,3.2078,3351.0,3350.7,2.2581201]
[1737045035803,0.59687,3351.3,3350.9,2.2581201]
[1737045036000,0.59687,3351.3,3351.2,2.2581201]
[1737045037003,3.2078,3351.4,3351.2,2.2581201]
[1737045037305,3.80466,3351.4,3351.3,0.59687]
[1737045037603,3.732,3351.9,3351.3,8.34875828]
[1737045037901,3.2078,3351.9,3351.6,2.2581201]
[1737045038106,3.80456,3351.9,3351.8,0.59678]
[1737045038503,2.51117,3352.5,3351.6,2.2581201]
[1737045038504,3.2078,3352.4,3351.6,2.2581201]
[1737045038809,3.2078,3352.4,3351.8,8.94551828]
[1737045038810,4.69949,3352.4,3351.8,8.94551828]
[1737045039005,0.59676,3351.9,3351.8,8.34875828]
[1737045039500,1.49179,3352.2,3351.6,3.80461]
[1737045039701,0.5968,3351.7,3351.6,3.80461]
[1737045039910,0.59679,3351.8,3351.7,0.59679]
[1737045040208,0.59678,3351.8,3351.7,2.2581201]
[1737045040407,1.49181,3352.2,3351.6,3.2078]
[1737045040708,0.59679,3351.8,3351.7,8.94173865]
[1737045040894,0.59679,3351.8,3351.7,8.34494865]
[1737045041209,3.2078,3352.4,3351.7,10.60306875]
[1737045041411,0.5967,3352.3,3352.2,2.2581201]
[1737045041597,0.59666,3352.5,3352.4,0.59667]
[1737045041802,0.59669,3352.3,3352.2,3.3886201]
[1737045042100,0.59668,3352.4,3352.3,0.59668]
[1737045042301,0.59664,3352.6,3352.5,0.59665]
[1737045042708,0.5966,3352.8,3352.7,0.59662]
[1737045043006,3.80438,3352.9,3352.8,0.5966]
[1737045043207,3.80438,3352.9,3352.8,2.2581201]
[1737045045003,0.59664,3352.6,3352.5,2.2581201]
[1737045045200,3.2078,3352.9,3352.2,2.7919201]
[1737045045201,0.59669,3352.3,3352.2,2.7919201]
[1737045045602,0.59669,3352.3,3352.2,3.3886301]
[1737045045809,0.59669,3352.3,3352.2,3.3886201]
[1737045046109,3.80449,3352.3,3352.2,2.7919201]
[1737045046807,3.80449,3352.3,3352.2,3.3886301]
[1737045047008,3.2078,3352.3,3352.2,3.3886301]
[1737045047201,3.2078,3352.7,3352.2,2.7919201]
[1737045047406,3.2078,3352.7,3352.6,0.59664]
[1737045047407,3.80443,3352.7,3352.6,0.59664]
[1737045047602,3.80443,3352.7,3352.6,0.88421244]
[1737045047603,3.2078,3352.7,3352.6,0.88421244]
[1737045047805,3.2078,3352.7,3352.6,0.28757244]
[1737045047806,3.80442,3352.7,3352.6,0.28757244]
[1737045048206,3.80442,3352.7,3352.6,0.74323459]
[1737045048403,3.2078,3352.7,3352.6,0.74323459]
[1737045048711,3.80442,3352.7,3352.6,3.59799469]
[1737045049104,3.2078,3353.6,3352.6,3.00135469]
[1737045049412,1.4912,3353.5,3352.8,3.2078]
[1737045049610,0.59657,3353.0,3352.9,0.28757244]
[1737045049814,0.59657,3353.0,3352.9,0.75127502]
[1737045050105,0.59657,3353.0,3352.9,1.80351717]
[1737045050306,0.59656,3353.1,3353.0,0.59656]
[1737045050508,0.59656,3353.1,3353.0,3.14225254]
[1737045051010,0.59655,3353.1,3353.0,3.59791469]
[1737045051303,0.59655,3353.1,3353.0,3.00135469]
[1737045051704,3.80435,3353.1,3353.0,0.74323459]
[1737045052505,3.80435,3353.1,3353.0,0.45566215]
[1737045053108,3.80435,3353.1,3353.0,0.74529999]
[1737045053705,3.80435,3353.1,3353.0,0.45566215]
[1737045053906,3.80435,3353.1,3353.0,0.74525624]
[1737045054309,3.80435,3353.1,3353.0,0.45566215]
[1737045056409,3.80435,3353.1,3353.0,1.34155906]
[1737045056705,3.80435,3353.1,3353.0,0.74494718]
[1737045056911,3.80435,3353.1,3353.0,1.34151718]
[1737045057310,3.2078,3353.1,3353.0,1.34151718]
[1737045057509,3.80435,3353.1,3353.0,1.34151718]
[1737045058015,0.5114,3353.5,3353.0,0.74494718]
[1737045058208,0.59648,3353.5,3353.4,2.2581201]
[1737045058408,3.2078,3353.6,3353.1,0.5515]
[1737045058602,0.59653,3353.2,3353.1,0.5515]
[1737045058807,0.59653,3353.2,3353.1,0.84067449]
[1737045059110,0.59653,3353.2,3353.1,0.28917449]
[1737045059309,0.59653,3353.2,3353.1,0.45467621]
[1737045060212,0.59653,3353.2,3353.1,3.59847156]
[1737045060410,0.59653,3353.2,3353.1,3.59852577]
[1737045060607,0.59653,3353.2,3353.1,0.74385567]
[1737045060809,0.59653,3353.2,3353.1,0.45467621]
[1737045061119,0.59653,3353.2,3353.1,0.74393307]
[1737045062315,0.59653,3353.3,3353.1,0.74393307]
[1737045062514,0.59653,3353.3,3353.2,0.28925686]
[1737045063010,0.59653,3353.3,3353.2,0.74393307]
[1737045063216,0.59653,3353.3,3353.2,0.74393519]
[1737045063718,0.59653,3353.3,3353.2,0.74389209]
[1737045065111,0.59653,3353.3,3353.2,0.45467621]
[1737045065508,5.0,3353.3,3351.7,5.4659201]
[1737045065714,0.59673,3352.1,3352.0,1.85197185]
[1737045065907,0.59672,3352.2,3352.1,0.59671]
[1737045066106,0.5179,3352.6,3352.1,0.75253185]
[1737045066316,0.59669,3352.4,3352.3,2.8548101]
[1737045066527,0.59669,3352.4,3352.3,3.01065195]
[1737045066811,3.7303,3353.2,3352.3,4.50237195]
[1737045067006,3.2078,3353.2,3352.9,2.2581201]
[1737045067209,3.2078,3353.2,3353.1,0.59655]
[1737045067410,3.80433,3353.2,3353.1,1.34942047]
[1737045067619,3.80433,3353.2,3353.1,0.75287047]
[1737045067821,3.2078,3353.2,3353.1,1.34942047]
[1737045068012,3.80433,3353.2,3353.1,1.34942047]
[1737045068320,3.80433,3353.2,3353.1,0.28955864]
[1737045071220,3.80433,3353.2,3353.1,0.29039587]
[1737045071415,3.2078,3353.2,3353.1,0.75515903]
[1737045071620,3.80433,3353.2,3353.1,1.35170903]
[1737045071816,3.2078,3353.2,3353.1,1.35170903]
[1737045072017,0.59649,3353.5,3353.1,2.06215903]
[1737045072221,0.59649,3353.5,3353.4,3.5015844]
[1737045072411,0.59649,3353.5,3353.4,4.25674343]
[1737045072913,0.59649,3353.5,3353.4,3.66025343]
[1737045074522,0.59649,3353.5,3353.4,0.29039587]
[1737045074722,0.59658,3352.9,3352.8,0.4985]
[1737045074917,0.59658,3352.9,3352.8,1.25336638]
[1737045076522,0.59658,3352.9,3352.8,0.75486638]
[1737045077731,0.59658,3352.9,3352.8,1.20800565]
[1737045079220,3.2078,3353.2,3352.8,1.20800565]
[1737045079423,3.2078,3353.2,3352.9,0.75486638]
[1737045079724,0.59655,3353.1,3353.0,1.25626638]
[1737045080026,0.59655,3353.1,3353.0,0.29032628]
[1737045080328,0.59655,3353.1,3353.0,0.74346555]
[1737045080531,0.59655,3353.1,3353.0,1.20794039]
[1737045080725,0.59655,3353.1,3353.0,0.74346555]
[1737045081127,0.59655,3353.1,3353.0,1.20793295]
[1737045081928,0.59655,3353.1,3353.0,1.80450295]
[1737045082131,3.2078,3353.2,3353.0,4.11302735]
[1737045082433,0.59653,3353.3,3353.2,0.59651]
[1737045082730,0.59653,3353.3,3353.2,3.18660368]
[1737045082926,0.59653,3353.3,3353.2,3.63974295]
[1737045083128,0.59653,3353.3,3353.2,2.88494927]
[1737045083429,0.59653,3353.3,3353.2,2.43181]
[1737045083629,3.2078,3353.6,3353.2,1.8353]
[1737045083832,0.59651,3353.4,3353.3,1.1069]
[1737045084028,0.59651,3353.4,3353.3,0.97452576]
[1737045084333,0.59651,3353.4,3353.3,2.31385592]
[1737045084721,0.59651,3353.4,3353.3,1.71734592]
[1737045085125,0.59651,3353.4,3353.3,1.20694592]
[1737045085333,0.59651,3353.4,3353.3,0.74282016]
[1737045086226,0.59651,3353.4,3353.3,0.74283086]
[1737045087129,0.59651,3353.4,3353.3,0.45275283]
[1737045087527,0.5274,3353.5,3352.4,6.82016703]
[1737045087729,3.2078,3352.6,3352.5,0.75403613]
[1737045088028,0.59651,3353.3,3353.2,0.59651]
[1737045088227,4.69885,3353.9,3353.2,3.65913053]
[1737045088433,4.69885,3353.9,3353.5,0.59646]
[1737045088434,0.59647,3353.6,3353.5,0.59646]
[1737045088634,3.2078,3353.9,3353.5,0.75403613]
[1737045088934,3.2078,3353.9,3353.6,3.65913053]
[1737045089129,0.59644,3353.7,3353.6,3.5015444]
[1737045089335,3.2078,3353.9,3353.6,3.65827716]
[1737045089539,0.59642,3353.8,3353.7,0.75318276]
[1737045089836,0.59634,3354.3,3354.2,0.59635]
[1737045090027,3.2078,3354.4,3354.2,3.65815219]
[1737045090231,3.2078,3354.4,3354.3,0.28967875]
[1737045090232,3.80413,3354.4,3354.3,0.28967875]
[1737045090430,3.80413,3354.4,3354.3,0.88600875]
[1737045090730,3.2078,3354.4,3354.3,0.28967875]
[1737045090931,3.2078,3355.6,3354.3,0.75265303]
[1737045091134,0.59617,3355.2,3355.1,2.9050944]
[1737045091438,0.5016,3355.4,3355.1,2.9050944]
[1737045091439,0.59616,3355.3,3355.1,3.79018961]
[1737045091631,0.59616,3355.3,3355.2,0.28891521]
[1737045092237,0.5016,3355.4,3354.9,0.5217]
[1737045092438,0.5016,3355.4,3355.0,0.28852266]
[1737045092734,0.59618,3355.2,3355.1,0.28852266]
[1737045092929,0.59617,3355.3,3355.1,0.28852266]
[1737045093130,0.59615,3355.4,3355.2,0.88469266]
[1737045093331,3.2078,3355.6,3355.1,2.9050944]
[1737045093529,3.2078,3355.6,3355.2,0.28813488]
[1737045093733,3.2078,3355.6,3354.9,0.5217]
[1737045093931,0.59621,3355.1,3355.0,0.28810789]
[1737045094134,0.59621,3355.1,3354.9,1.11792]
[1737045094538,0.59622,3355.0,3354.8,5.11104]
[1737045094731,3.2078,3355.6,3354.8,4.5148]
[1737045095228,0.59623,3354.9,3354.8,4.5148]
[1737045095424,3.2078,3355.6,3354.8,7.4198944]
[1737045095425,0.5962,3355.1,3354.8,7.4198944]
[1737045095636,0.59616,3355.3,3355.1,0.59618]
[1737045095832,3.2078,3355.6,3354.8,7.4198944]
[1737045096139,0.59614,3355.4,3355.1,2.9050944]
[1737045096439,3.2078,3355.6,3354.8,7.4198944]
[1737045096737,0.59612,3355.5,3355.2,0.59616]
[1737045096931,3.2078,3355.6,3355.2,0.59616]
[1737045097142,3.2078,3356.0,3355.4,3.5012144]
[1737045097338,0.59611,3355.6,3355.4,2.9050944]
[1737045097534,0.59611,3355.6,3355.3,1.12884]
[1737045097735,3.2078,3356.0,3355.4,2.9050944]
[1737045097938,3.2078,3356.0,3355.4,3.5012244]
[1737045098135,0.5961,3355.6,3355.4,2.9050944]
[1737045098337,0.59609,3355.7,3355.4,2.9050944]